[Event "Early-Titled-Tuesday-Blitz-February-06-2024"]
[Site "Chess.com"]
[Date "2024.02.06"]
[Round "2"]
[White "korkmaz16"]
[Black "rikchessmx"]
[Result "1/2-1/2"]
[WhiteElo "2501"]
[BlackElo "2316"]
[TimeControl "180+1"]
[EndTime "8:18:26 PST"]
[Termination "Game drawn by repetition"]

1. e4 {[%clk 0:03:00.9]} 1... d5 {[%clk 0:03:00.9]} 2. exd5 {[%clk 0:03:00.5]}
2... Qxd5 {[%clk 0:03:00.8]} 3. Nc3 {[%clk 0:03:00.1]} 3... Qa5 {[%clk
0:03:00.4]} 4. d4 {[%clk 0:03:00.5]} 4... Nf6 {[%clk 0:03:00.8]} 5. Nf3 {[%clk
0:02:56.7]} 5... Nc6 {[%clk 0:03:00.5]} 6. Bb5 {[%clk 0:02:44.1]} 6... a6 {[%clk
0:02:59.3]} 7. Bxc6+ {[%clk 0:02:43.8]} 7... bxc6 {[%clk 0:03:00.2]} 8. O-O
{[%clk 0:02:43.6]} 8... Bg4 {[%clk 0:02:59.1]} 9. h3 {[%clk 0:02:42.8]} 9... Bh5
{[%clk 0:02:57.8]} 10. g4 {[%clk 0:02:42.7]} 10... Nxg4 {[%clk 0:02:55.4]} 11.
hxg4 {[%clk 0:02:42.1]} 11... Bxg4 {[%clk 0:02:56.3]} 12. Qd3 {[%clk 0:02:40.1]}
12... Qh5 {[%clk 0:02:42.6]} 13. Ne5 {[%clk 0:02:31.4]} 13... Bh3 {[%clk
0:02:42.4]} 14. Re1 {[%clk 0:02:27.1]} 14... f6 {[%clk 0:02:38]} 15. Nxc6 {[%clk
0:02:07.1]} 15... e6 {[%clk 0:02:22.2]} 16. Bf4 {[%clk 0:01:51]} 16... Bd6
{[%clk 0:02:19.7]} 17. Bxd6 {[%clk 0:01:49.2]} 17... cxd6 {[%clk 0:02:19.8]} 18.
Qg3 {[%clk 0:01:49.7]} 18... O-O {[%clk 0:02:16.6]} 19. Qxd6 {[%clk 0:01:46.1]}
19... e5 {[%clk 0:02:11.9]} 20. Re3 {[%clk 0:01:45.7]} 20... Bg4 {[%clk
0:01:57.7]} 21. Rg3 {[%clk 0:01:41.2]} 21... Bf3 {[%clk 0:01:52.5]} 22. Rxf3
{[%clk 0:01:40.5]} 22... Qxf3 {[%clk 0:01:51.8]} 23. Qd5+ {[%clk 0:01:39.9]}
23... Qxd5 {[%clk 0:01:51]} 24. Nxd5 {[%clk 0:01:40.6]} 24... exd4 {[%clk
0:01:50.9]} 25. Nxd4 {[%clk 0:01:38.2]} 25... Rfd8 {[%clk 0:01:47.7]} 26. c4
{[%clk 0:01:38.1]} 26... a5 {[%clk 0:01:44.2]} 27. Re1 {[%clk 0:01:30.9]} 27...
Re8 {[%clk 0:01:38.5]} 28. Rc1 {[%clk 0:01:30]} 28... Reb8 {[%clk 0:01:28.2]}
29. c5 {[%clk 0:01:28.2]} 29... Rxb2 {[%clk 0:01:25.3]} 30. c6 {[%clk
0:01:26.5]} 30... Rd2 {[%clk 0:01:25.3]} 31. Nb6 {[%clk 0:01:19.7]} 31... Re8
{[%clk 0:01:18.8]} 32. Nf3 {[%clk 0:01:18.7]} 32... Rd6 {[%clk 0:01:14.7]} 33.
c7 {[%clk 0:01:17.4]} 33... Rxb6 {[%clk 0:01:14.2]} 34. c8=Q {[%clk 0:01:17.2]}
34... Rxc8 {[%clk 0:01:14.3]} 35. Rxc8+ {[%clk 0:01:17.8]} 35... Kf7 {[%clk
0:01:14.8]} 36. Rc2 {[%clk 0:01:17.3]} 36... g5 {[%clk 0:01:12]} 37. Nd4 {[%clk
0:01:17]} 37... Rb4 {[%clk 0:01:10]} 38. Nc6 {[%clk 0:01:14.9]} 38... Ra4 {[%clk
0:01:07.9]} 39. Re2 {[%clk 0:01:11.8]} 39... h5 {[%clk 0:01:04.6]} 40. Nd8+
{[%clk 0:01:11.4]} 40... Kg6 {[%clk 0:01:04.1]} 41. Nc6 {[%clk 0:01:07.8]} 41...
h4 {[%clk 0:01:03.4]} 42. Ne7+ {[%clk 0:01:06.1]} 42... Kh5 {[%clk 0:01:01.8]}
43. Kg2 {[%clk 0:01:02.6]} 43... Kg4 {[%clk 0:00:49.7]} 44. f3+ {[%clk
0:01:00.1]} 44... Kf4 {[%clk 0:00:37.9]} 45. Nd5+ {[%clk 0:00:56.6]} 45... Kf5
{[%clk 0:00:36.5]} 46. Ne3+ {[%clk 0:00:55.5]} 46... Kf4 {[%clk 0:00:32.1]} 47.
Nd5+ {[%clk 0:00:48.3]} 47... Kf5 {[%clk 0:00:31.5]} 48. Nc3 {[%clk 0:00:48.4]}
48... Rc4 {[%clk 0:00:25.2]} 49. Ne4 {[%clk 0:00:47.7]} 49... Ra4 {[%clk
0:00:20.5]} 50. Nc5 {[%clk 0:00:46.9]} 50... Rc4 {[%clk 0:00:19.6]} 51. Nb3
{[%clk 0:00:46.2]} 51... a4 {[%clk 0:00:19.2]} 52. Nd2 {[%clk 0:00:46.4]} 52...
Rb4 {[%clk 0:00:17]} 53. Nf1 {[%clk 0:00:45.7]} 53... g4 {[%clk 0:00:17.1]} 54.
Ne3+ {[%clk 0:00:45.9]} 54... Kf4 {[%clk 0:00:15.4]} 55. Nxg4 {[%clk 0:00:46.1]}
55... h3+ {[%clk 0:00:15.8]} 56. Kf2 {[%clk 0:00:44.3]} 56... f5 {[%clk
0:00:15.8]} 57. Nh2 {[%clk 0:00:44.3]} 57... a3 {[%clk 0:00:14.8]} 58. Nf1
{[%clk 0:00:34.6]} 58... Rb2 {[%clk 0:00:14.6]} 59. Nd2 {[%clk 0:00:34.8]} 59...
h2 {[%clk 0:00:12]} 60. Kg2 {[%clk 0:00:34.7]} 60... h1=Q+ {[%clk 0:00:10.2]}
61. Kxh1 {[%clk 0:00:35]} 61... Rxa2 {[%clk 0:00:09.8]} 62. Kg2 {[%clk
0:00:35.4]} 62... Rb2 {[%clk 0:00:09]} 63. Kf2 {[%clk 0:00:34.3]} 63... a2
{[%clk 0:00:07.4]} 64. Nb3 {[%clk 0:00:32.3]} 64... Rxb3 {[%clk 0:00:07.4]} 65.
Rxa2 {[%clk 0:00:32.1]} 65... Rb4 {[%clk 0:00:08]} 66. Rc2 {[%clk 0:00:30.4]}
66... Ra4 {[%clk 0:00:08.1]} 67. Rd2 {[%clk 0:00:30]} 67... Rb4 {[%clk
0:00:08.2]} 68. Re2 {[%clk 0:00:30.2]} 68... Rc4 {[%clk 0:00:08.1]} 69. Rd2
{[%clk 0:00:30.4]} 69... Rb4 {[%clk 0:00:08.5]} 70. Ra2 {[%clk 0:00:30.5]} 70...
Rc4 {[%clk 0:00:08.5]} 71. Rd2 {[%clk 0:00:30.6]} 71... Rb4 {[%clk 0:00:08.7]}
1/2-1/2

[Event "Early-Titled-Tuesday-Blitz-February-06-2024"]
[Site "Chess.com"]
[Date "2024.02.06"]
[Round "2"]
[White "Atousa"]
[Black "mary-sanna"]
[Result "1-0"]
[WhiteElo "2461"]
[BlackElo "2196"]
[TimeControl "180+1"]
[EndTime "8:18:26 PST"]
[Termination "Atousa won on time"]

1. e4 {[%clk 0:02:40.4]} 1... c5 {[%clk 0:02:59.8]} 2. Nf3 {[%clk 0:02:38.4]}
2... Nc6 {[%clk 0:02:59.8]} 3. b3 {[%clk 0:02:35.5]} 3... e5 {[%clk 0:02:53.7]}
4. Bb2 {[%clk 0:02:34.9]} 4... d6 {[%clk 0:02:50.2]} 5. Bc4 {[%clk 0:02:31.3]}
5... Be7 {[%clk 0:02:47.3]} 6. O-O {[%clk 0:02:27.1]} 6... Nf6 {[%clk
0:02:47.4]} 7. Re1 {[%clk 0:02:26.9]} 7... O-O {[%clk 0:02:47.5]} 8. Nc3 {[%clk
0:02:25.6]} 8... h6 {[%clk 0:02:47.1]} 9. h3 {[%clk 0:02:22.5]} 9... Be6 {[%clk
0:02:46.1]} 10. d3 {[%clk 0:02:19]} 10... a6 {[%clk 0:02:33.7]} 11. a4 {[%clk
0:02:15.5]} 11... Rb8 {[%clk 0:02:33.5]} 12. Qd2 {[%clk 0:02:04.3]} 12... Nd4
{[%clk 0:02:28.4]} 13. Nh2 {[%clk 0:01:35.5]} 13... b5 {[%clk 0:02:21.4]} 14.
axb5 {[%clk 0:01:34.3]} 14... axb5 {[%clk 0:02:20.9]} 15. Bxe6 {[%clk
0:01:35.1]} 15... Nxe6 {[%clk 0:02:17.3]} 16. Ne2 {[%clk 0:01:29.5]} 16... Nh5
{[%clk 0:02:00.5]} 17. Ng3 {[%clk 0:01:09.1]} 17... Nxg3 {[%clk 0:01:59.5]} 18.
fxg3 {[%clk 0:01:08.5]} 18... Bg5 {[%clk 0:01:59.2]} 19. Qe2 {[%clk 0:01:01.6]}
19... Qc7 {[%clk 0:01:51.2]} 20. Bc3 {[%clk 0:00:47.4]} 20... Rfc8 {[%clk
0:01:43.9]} 21. Nf3 {[%clk 0:00:45.2]} 21... Be7 {[%clk 0:01:38.8]} 22. Nd2
{[%clk 0:00:39.1]} 22... Ra8 {[%clk 0:01:34.6]} 23. Rf1 {[%clk 0:00:34.8]} 23...
Qb6 {[%clk 0:01:32.6]} 24. Kh2 {[%clk 0:00:31.2]} 24... Bf8 {[%clk 0:01:21.7]}
25. Qf2 {[%clk 0:00:30]} 25... Qc7 {[%clk 0:01:19.2]} 26. Nf3 {[%clk 0:00:21.4]}
26... c4 {[%clk 0:01:11.9]} 27. dxc4 {[%clk 0:00:19.7]} 27... bxc4 {[%clk
0:01:12.1]} 28. b4 {[%clk 0:00:20.6]} 28... Qb7 {[%clk 0:01:04.2]} 29. Nh4
{[%clk 0:00:19.9]} 29... Rxa1 {[%clk 0:00:58]} 30. Bxa1 {[%clk 0:00:19.9]} 30...
Rc7 {[%clk 0:00:48.2]} 31. Qf3 {[%clk 0:00:17.5]} 31... Qxb4 {[%clk 0:00:46]}
32. Nf5 {[%clk 0:00:17.9]} 32... Qb7 {[%clk 0:00:24.4]} 33. Qg4 {[%clk
0:00:16.8]} 33... Ng5 {[%clk 0:00:20.7]} 34. Re1 {[%clk 0:00:10.3]} 34... Kh8
{[%clk 0:00:20]} 35. Bc3 {[%clk 0:00:09.9]} 35... Qc6 {[%clk 0:00:18.4]} 36. Bd2
{[%clk 0:00:10.2]} 36... d5 {[%clk 0:00:16.7]} 37. Bxg5 {[%clk 0:00:09.6]} 37...
hxg5 {[%clk 0:00:16.9]} 38. Qxg5 {[%clk 0:00:09.7]} 38... dxe4 {[%clk
0:00:17.1]} 39. Rf1 {[%clk 0:00:09.1]} 39... Qg6 {[%clk 0:00:16.4]} 40. Qh4+
{[%clk 0:00:08.1]} 40... Kg8 {[%clk 0:00:16.3]} 41. Qd8 {[%clk 0:00:07.2]} 41...
Ra7 {[%clk 0:00:15.6]} 42. Ne3 {[%clk 0:00:06]} 42... Qd6 {[%clk 0:00:13.1]} 43.
Qc8 {[%clk 0:00:05.4]} 43... Rc7 {[%clk 0:00:12.7]} 44. Qe8 {[%clk 0:00:05.3]}
44... Qe7 {[%clk 0:00:12.1]} 45. Qb5 {[%clk 0:00:05.4]} 45... Qc5 {[%clk
0:00:11.6]} 46. Qb8 {[%clk 0:00:05.5]} 46... Rc8 {[%clk 0:00:11]} 47. Qb7 {[%clk
0:00:04.6]} 47... Rc7 {[%clk 0:00:10.1]} 48. Qb8 {[%clk 0:00:04.7]} 48... Kh7
{[%clk 0:00:06.1]} 49. Ng4 {[%clk 0:00:03.5]} 49... f6 {[%clk 0:00:03.2]} 50.
Qe8 {[%clk 0:00:03.5]} 50... Qe7 {[%clk 0:00:02.9]} 51. Qh5+ {[%clk 0:00:03.6]}
51... Kg8 {[%clk 0:00:03.2]} 52. Ne3 {[%clk 0:00:04.3]} 52... Qf7 {[%clk
0:00:01.9]} 53. Qg4 {[%clk 0:00:05]} 53... Qd7 {[%clk 0:00:01.9]} 54. Nf5 {[%clk
0:00:05.5]} 54... Kf7 {[%clk 0:00:01.3]} 55. Qxe4 {[%clk 0:00:05.8]} 1-0

[Event "Early-Titled-Tuesday-Blitz-February-06-2024"]
[Site "Chess.com"]
[Date "2024.02.06"]
[Round "2"]
[White "Alexchess1984"]
[Black "APOKALIPSA13"]
[Result "0-1"]
[WhiteElo "2663"]
[BlackElo "2214"]
[TimeControl "180+1"]
[EndTime "8:18:27 PST"]
[Termination "APOKALIPSA13 won on time"]

1. e4 {[%clk 0:02:49.8]} 1... e5 {[%clk 0:03:00.2]} 2. Nf3 {[%clk 0:02:49.4]}
2... d5 {[%clk 0:03:00.4]} 3. Nxe5 {[%clk 0:02:43.3]} 3... Bd6 {[%clk
0:02:59.6]} 4. d4 {[%clk 0:02:41.2]} 4... dxe4 {[%clk 0:02:56.8]} 5. Nc3 {[%clk
0:02:39.4]} 5... Bxe5 {[%clk 0:02:56.9]} 6. dxe5 {[%clk 0:02:38.6]} 6... Qxd1+
{[%clk 0:02:57.8]} 7. Nxd1 {[%clk 0:02:38.5]} 7... Nc6 {[%clk 0:02:57.7]} 8. Bf4
{[%clk 0:02:37.4]} 8... Bf5 {[%clk 0:02:57.7]} 9. Ne3 {[%clk 0:02:35.5]} 9...
Be6 {[%clk 0:02:55]} 10. O-O-O {[%clk 0:02:34.2]} 10... Nge7 {[%clk 0:02:54.6]}
11. g4 {[%clk 0:02:13.9]} 11... Ng6 {[%clk 0:02:53.3]} 12. Bg3 {[%clk
0:02:12.6]} 12... Ngxe5 {[%clk 0:02:52.9]} 13. Bg2 {[%clk 0:01:52.8]} 13... Nf3
{[%clk 0:02:33.3]} 14. Bxf3 {[%clk 0:01:23.4]} 14... exf3 {[%clk 0:02:34.2]} 15.
Bxc7 {[%clk 0:01:23.3]} 15... Rc8 {[%clk 0:02:33.3]} 16. Bg3 {[%clk 0:01:21.8]}
16... Nb4 {[%clk 0:02:30]} 17. a3 {[%clk 0:01:21.2]} 17... Na6 {[%clk
0:02:22.8]} 18. Kb1 {[%clk 0:01:20.3]} 18... O-O {[%clk 0:02:22.6]} 19. Rd4
{[%clk 0:01:17.9]} 19... h5 {[%clk 0:02:05.1]} 20. h3 {[%clk 0:01:12.6]} 20...
f5 {[%clk 0:01:54.4]} 21. gxh5 {[%clk 0:00:57.8]} 21... Nc7 {[%clk 0:01:34.1]}
22. Rg1 {[%clk 0:00:44.4]} 22... Kh7 {[%clk 0:01:24.8]} 23. Be5 {[%clk
0:00:39.8]} 23... Rf7 {[%clk 0:01:24.5]} 24. Rf4 {[%clk 0:00:37]} 24... Ne8
{[%clk 0:01:15.1]} 25. Rxf3 {[%clk 0:00:29.6]} 25... Rc5 {[%clk 0:01:15]} 26.
Bd4 {[%clk 0:00:27.4]} 26... Rc6 {[%clk 0:01:11.5]} 27. Rf4 {[%clk 0:00:25.9]}
27... b6 {[%clk 0:01:07.2]} 28. Rh4 {[%clk 0:00:24.3]} 28... Kh6 {[%clk
0:01:06]} 29. Rg6+ {[%clk 0:00:20.7]} 29... Kh7 {[%clk 0:01:05.1]} 30. Rf4
{[%clk 0:00:17.1]} 30... Rd6 {[%clk 0:00:56.8]} 31. Ng2 {[%clk 0:00:11.1]} 31...
Bd5 {[%clk 0:00:53.3]} 32. Nh4 {[%clk 0:00:07.6]} 32... Be4 {[%clk 0:00:49]} 33.
Bc3 {[%clk 0:00:04.3]} 33... Rd1+ {[%clk 0:00:47.8]} 34. Ka2 {[%clk 0:00:04.4]}
34... Bxc2 {[%clk 0:00:46.1]} 35. Rc6 {[%clk 0:00:04.3]} 35... Be4 {[%clk
0:00:45.1]} 36. Rc8 {[%clk 0:00:03]} 36... Nd6 {[%clk 0:00:43.8]} 37. Rd8 {[%clk
0:00:02.3]} 37... Bd5+ {[%clk 0:00:42.4]} 38. b3 {[%clk 0:00:02.2]} 38... Nb5
{[%clk 0:00:42.6]} 39. Bb2 {[%clk 0:00:02.2]} 39... Bxb3+ {[%clk 0:00:41.8]} 40.
Kxb3 {[%clk 0:00:02.9]} 40... Rxd8 {[%clk 0:00:41.9]} 41. Rxf5 {[%clk
0:00:02.7]} 41... Rxf5 {[%clk 0:00:38.3]} 42. Nxf5 {[%clk 0:00:03.4]} 42... g6
{[%clk 0:00:36.6]} 43. hxg6+ {[%clk 0:00:02.8]} 43... Kxg6 {[%clk 0:00:37.5]}
44. Ne7+ {[%clk 0:00:03.2]} 44... Kf7 {[%clk 0:00:36.7]} 45. Nc6 {[%clk
0:00:03.3]} 45... Rd2 {[%clk 0:00:34.5]} 46. a4 {[%clk 0:00:02.7]} 46... Nd6
{[%clk 0:00:31.5]} 47. Nxa7 {[%clk 0:00:02.7]} 47... Rxf2 {[%clk 0:00:31.2]} 48.
Bd4 {[%clk 0:00:03.2]} 48... Rf3+ {[%clk 0:00:29]} 49. Kb4 {[%clk 0:00:03.2]}
49... Rf4 {[%clk 0:00:27.5]} 50. Kc3 {[%clk 0:00:03.1]} 50... Rf3+ {[%clk
0:00:24.5]} 51. Kb4 {[%clk 0:00:02.9]} 51... Rxh3 {[%clk 0:00:20.2]} 52. Bxb6
{[%clk 0:00:02.2]} 52... Rh1 {[%clk 0:00:19.8]} 53. a5 {[%clk 0:00:01.5]} 53...
Rb1+ {[%clk 0:00:20]} 54. Kc5 {[%clk 0:00:01.4]} 54... Ke6 {[%clk 0:00:16.6]}
0-1

[Event "Early-Titled-Tuesday-Blitz-February-06-2024"]
[Site "Chess.com"]
[Date "2024.02.06"]
[Round "2"]
[White "temiksmozg"]
[Black "FredddieCroderg"]
[Result "1-0"]
[WhiteElo "2617"]
[BlackElo "2354"]
[TimeControl "180+1"]
[EndTime "8:18:27 PST"]
[Termination "temiksmozg won by resignation"]

1. d4 {[%clk 0:03:00.9]} 1... Nf6 {[%clk 0:02:58.3]} 2. c4 {[%clk 0:03:00.9]}
2... e6 {[%clk 0:02:57.9]} 3. Nf3 {[%clk 0:03:00.7]} 3... d5 {[%clk 0:02:57.5]}
4. Nc3 {[%clk 0:03:00.8]} 4... Be7 {[%clk 0:02:56.1]} 5. Bg5 {[%clk 0:03:00]}
5... O-O {[%clk 0:02:55.6]} 6. e3 {[%clk 0:03:00.3]} 6... Re8 {[%clk 0:02:55.1]}
7. Qc2 {[%clk 0:03:00.6]} 7... c5 {[%clk 0:02:53.4]} 8. cxd5 {[%clk 0:02:54.7]}
8... cxd4 {[%clk 0:02:52.9]} 9. Nxd4 {[%clk 0:02:53.6]} 9... Nxd5 {[%clk
0:02:48.6]} 10. Nxd5 {[%clk 0:02:39.2]} 10... exd5 {[%clk 0:02:43.7]} 11. Bxe7
{[%clk 0:02:38.3]} 11... Qxe7 {[%clk 0:02:42.1]} 12. Bd3 {[%clk 0:02:37.4]}
12... Nc6 {[%clk 0:02:39.6]} 13. Nxc6 {[%clk 0:02:26]} 13... bxc6 {[%clk
0:02:39.5]} 14. O-O {[%clk 0:02:25.2]} 14... Bd7 {[%clk 0:02:33.3]} 15. Bxh7+
{[%clk 0:02:24.7]} 15... Kh8 {[%clk 0:02:33.4]} 16. Bf5 {[%clk 0:02:24.7]} 16...
g6 {[%clk 0:02:32.4]} 17. Bxd7 {[%clk 0:02:23.3]} 17... Qxd7 {[%clk 0:02:32.8]}
18. Rac1 {[%clk 0:02:23.9]} 18... Rac8 {[%clk 0:02:32.9]} 19. Qc3+ {[%clk
0:02:23.5]} 19... Kg8 {[%clk 0:02:30.9]} 20. Qd4 {[%clk 0:02:19.9]} 20... Re4
{[%clk 0:02:26.8]} 21. Qc5 {[%clk 0:02:18.5]} 21... Kh7 {[%clk 0:02:17.4]} 22.
Rfd1 {[%clk 0:02:18.2]} 22... Re5 {[%clk 0:01:56.4]} 23. Qd4 {[%clk 0:02:11.3]}
23... Rg5 {[%clk 0:01:55.4]} 24. Qh4+ {[%clk 0:02:06.4]} 24... Rh5 {[%clk
0:01:54.2]} 25. Qf6 {[%clk 0:02:04.4]} 25... Rf5 {[%clk 0:01:51.1]} 26. Qc3
{[%clk 0:02:02.2]} 26... Rg5 {[%clk 0:01:44.9]} 27. e4 {[%clk 0:01:15.2]} 27...
Qg4 {[%clk 0:01:38.7]} 28. Qg3 {[%clk 0:01:14.6]} 28... Qxg3 {[%clk 0:01:12.8]}
29. hxg3 {[%clk 0:01:15.5]} 29... dxe4 {[%clk 0:01:10.8]} 30. Rd7 {[%clk
0:01:15.9]} 30... Kg7 {[%clk 0:01:06.8]} 31. Rxa7 {[%clk 0:01:14.6]} 31... Rd5
{[%clk 0:01:01.6]} 32. b4 {[%clk 0:01:01.3]} 32... Rd2 {[%clk 0:00:59.7]} 33. a4
{[%clk 0:00:53]} 33... Rb8 {[%clk 0:00:48.5]} 34. Rc4 {[%clk 0:00:33]} 34... Rb2
{[%clk 0:00:38.9]} 35. Rxe4 {[%clk 0:00:23.4]} 35... R8xb4 {[%clk 0:00:38.6]}
36. Ree7 {[%clk 0:00:21]} 36... Rb1+ {[%clk 0:00:36.9]} 37. Kh2 {[%clk
0:00:20.3]} 37... Ra1 {[%clk 0:00:31.2]} 38. Rxf7+ {[%clk 0:00:19.8]} 38... Kh6
{[%clk 0:00:30.7]} 39. f4 {[%clk 0:00:19]} 39... g5 {[%clk 0:00:27]} 40. Rf6+
{[%clk 0:00:16.8]} 40... Kh5 {[%clk 0:00:25.9]} 41. Rh7+ {[%clk 0:00:17.2]}
41... Kg4 {[%clk 0:00:25.9]} 42. Rg6 {[%clk 0:00:17.7]} 42... Kf5 {[%clk
0:00:18.9]} 43. Rxg5+ {[%clk 0:00:18.1]} 43... Ke4 {[%clk 0:00:18.7]} 44. Rc5
{[%clk 0:00:11.5]} 44... Rbb1 {[%clk 0:00:17.4]} 45. Re5+ {[%clk 0:00:02.6]}
45... Kd4 {[%clk 0:00:15.6]} 46. Rd7+ {[%clk 0:00:03.5]} 46... Kc4 {[%clk
0:00:15.5]} 47. Kh3 {[%clk 0:00:04.4]} 47... c5 {[%clk 0:00:15.2]} 48. Kg4
{[%clk 0:00:04.5]} 48... Kb4 {[%clk 0:00:14.9]} 49. Rb7+ {[%clk 0:00:04.3]}
49... Kxa4 {[%clk 0:00:14.5]} 50. Rxb1 {[%clk 0:00:04.8]} 50... Rxb1 {[%clk
0:00:14.5]} 51. Rxc5 {[%clk 0:00:05.7]} 51... Rg1 {[%clk 0:00:13.3]} 52. Re5
{[%clk 0:00:04.5]} 52... Kb4 {[%clk 0:00:13.7]} 53. f5 {[%clk 0:00:04.9]} 53...
Kc4 {[%clk 0:00:13.8]} 54. f6 {[%clk 0:00:05.5]} 54... Kd4 {[%clk 0:00:14.2]}
55. Rf5 {[%clk 0:00:06]} 55... Ra1 {[%clk 0:00:11.5]} 56. f7 {[%clk 0:00:06.9]}
56... Ra4 {[%clk 0:00:10.8]} 57. f8=Q {[%clk 0:00:06.3]} 57... Ke3+ {[%clk
0:00:11.7]} 58. Kg5 {[%clk 0:00:06.6]} 58... Ke2 {[%clk 0:00:11.6]} 59. Qe8+
{[%clk 0:00:06.4]} 59... Kd1 {[%clk 0:00:10.8]} 60. Qxa4+ {[%clk 0:00:06.5]} 1-0

[Event "Early-Titled-Tuesday-Blitz-February-06-2024"]
[Site "Chess.com"]
[Date "2024.02.06"]
[Round "2"]
[White "Smiechu"]
[Black "bogcsab"]
[Result "0-1"]
[WhiteElo "2420"]
[BlackElo "2287"]
[TimeControl "180+1"]
[EndTime "8:18:28 PST"]
[Termination "bogcsab won by resignation"]

1. e4 {[%clk 0:03:00.9]} 1... d6 {[%clk 0:02:59.9]} 2. d4 {[%clk 0:02:54.8]}
2... Nf6 {[%clk 0:02:59.6]} 3. Nc3 {[%clk 0:02:54.1]} 3... g6 {[%clk 0:02:59.5]}
4. Be3 {[%clk 0:02:53.9]} 4... Ng4 {[%clk 0:02:57.6]} 5. Bg5 {[%clk 0:02:48.5]}
5... f6 {[%clk 0:02:55.4]} 6. Bh4 {[%clk 0:02:45.4]} 6... Bg7 {[%clk 0:02:33.8]}
7. Ke2 {[%clk 0:02:43.7]} 7... O-O {[%clk 0:02:28.1]} 8. f3 {[%clk 0:02:40.9]}
8... Nh6 {[%clk 0:02:27.3]} 9. Bf2 {[%clk 0:02:39.1]} 9... e6 {[%clk 0:02:26]}
10. Qd2 {[%clk 0:02:17.8]} 10... c6 {[%clk 0:02:22.8]} 11. Re1 {[%clk
0:02:16.6]} 11... d5 {[%clk 0:02:21.9]} 12. Kd1 {[%clk 0:02:16.6]} 12... Nf7
{[%clk 0:02:15.1]} 13. h4 {[%clk 0:02:16]} 13... dxe4 {[%clk 0:01:53.9]} 14.
fxe4 {[%clk 0:02:08.8]} 14... e5 {[%clk 0:01:51.5]} 15. Nf3 {[%clk 0:02:04.9]}
15... Be6 {[%clk 0:01:42.8]} 16. h5 {[%clk 0:02:03.3]} 16... g5 {[%clk
0:01:23.5]} 17. Kc1 {[%clk 0:01:55.1]} 17... Na6 {[%clk 0:01:08.7]} 18. Kb1
{[%clk 0:01:54.3]} 18... Nc7 {[%clk 0:01:06.7]} 19. Qe3 {[%clk 0:01:30.5]} 19...
Qe7 {[%clk 0:01:05.3]} 20. dxe5 {[%clk 0:01:28.9]} 20... fxe5 {[%clk 0:00:59.3]}
21. h6 {[%clk 0:01:24.6]} 21... Bxh6 {[%clk 0:00:57.5]} 22. g4 {[%clk
0:01:00.8]} 22... Bg7 {[%clk 0:00:51.7]} 23. Nd2 {[%clk 0:00:53.3]} 23... h6
{[%clk 0:00:47.7]} 24. Qh3 {[%clk 0:00:45.3]} 24... b5 {[%clk 0:00:46.5]} 25.
Ne2 {[%clk 0:00:39]} 25... Qb4 {[%clk 0:00:43.6]} 26. c3 {[%clk 0:00:27.7]}
26... Qa4 {[%clk 0:00:43]} 27. Nc1 {[%clk 0:00:27.8]} 27... Rfd8 {[%clk
0:00:41.6]} 28. Bd3 {[%clk 0:00:27]} 28... b4 {[%clk 0:00:40.2]} 29. Bc2 {[%clk
0:00:27.2]} 29... Qa5 {[%clk 0:00:39.7]} 30. Ndb3 {[%clk 0:00:23.9]} 30... Qb5
{[%clk 0:00:35.5]} 31. Nc5 {[%clk 0:00:19.8]} 31... Bc4 {[%clk 0:00:32.5]} 32.
cxb4 {[%clk 0:00:17.3]} 32... Qxb4 {[%clk 0:00:31.8]} 33. Bb3 {[%clk 0:00:17.6]}
33... Bxb3 {[%clk 0:00:31.1]} 34. Qxb3 {[%clk 0:00:16.9]} 34... Qxb3 {[%clk
0:00:30.6]} 35. N1xb3 {[%clk 0:00:17.8]} 35... Nb5 {[%clk 0:00:30.9]} 36. Ne6
{[%clk 0:00:17.5]} 36... Rd6 {[%clk 0:00:30.7]} 37. Nxg7 {[%clk 0:00:17.7]}
37... Kxg7 {[%clk 0:00:31.2]} 38. Rc1 {[%clk 0:00:18]} 38... Rad8 {[%clk
0:00:30.6]} 39. Na5 {[%clk 0:00:17.8]} 39... Nd4 {[%clk 0:00:28.7]} 40. Bxd4
{[%clk 0:00:15.8]} 40... exd4 {[%clk 0:00:29.2]} 41. Nxc6 {[%clk 0:00:16.1]}
41... Re8 {[%clk 0:00:28.9]} 42. Rhe1 {[%clk 0:00:14.6]} 42... d3 {[%clk
0:00:28.3]} 43. Red1 {[%clk 0:00:06.1]} 43... Rxe4 {[%clk 0:00:26.9]} 44. Rc3
{[%clk 0:00:06]} 44... d2 {[%clk 0:00:26.4]} 45. Kc2 {[%clk 0:00:03.6]} 45...
Re2 {[%clk 0:00:24.8]} 46. Nb4 {[%clk 0:00:02.5]} 46... Rg2 {[%clk 0:00:23.2]}
47. Rd3 {[%clk 0:00:02.6]} 47... Rxd3 {[%clk 0:00:21.8]} 48. Nxd3 {[%clk
0:00:02.8]} 48... Rxg4 {[%clk 0:00:22.4]} 49. Rxd2 {[%clk 0:00:03.3]} 49... h5
{[%clk 0:00:22.6]} 50. Rf2 {[%clk 0:00:02.5]} 50... h4 {[%clk 0:00:22.6]} 51.
Rxf7+ {[%clk 0:00:02.6]} 51... Kxf7 {[%clk 0:00:21.8]} 52. Ne5+ {[%clk
0:00:03.2]} 52... Kf6 {[%clk 0:00:21.3]} 53. Nxg4+ {[%clk 0:00:03.9]} 53... Kf5
{[%clk 0:00:22]} 54. Ne3+ {[%clk 0:00:01.8]} 54... Kf4 {[%clk 0:00:20.9]} 55.
Kd3 {[%clk 0:00:02.4]} 55... h3 {[%clk 0:00:20.6]} 56. Nf1 {[%clk 0:00:02.1]}
56... Kf3 {[%clk 0:00:20.5]} 57. b4 {[%clk 0:00:01.2]} 57... g4 {[%clk
0:00:17.9]} 58. Ne3 {[%clk 0:00:01.5]} 58... h2 {[%clk 0:00:16]} 59. Nd1 {[%clk
0:00:01.5]} 59... h1=Q {[%clk 0:00:15.2]} 60. Ne3 {[%clk 0:00:02.4]} 60... Qb1+
{[%clk 0:00:14.4]} 0-1